[Event "Malawi Championship (W)"]
[Site "followchess.com"]
[Date "2022.04.16"]
[Round "3"]
[White "Msukwa, Tupokiwe"]
[Black "Jambo, Linda"]
[Result "1-0"]
[WhiteElo "1371"]
[BlackElo "1450"]
[ECO "D35"]
[WhiteFed "MAW"]
[BlackFed "MAW"]
[FCGameId "-2051830944"]
[WhiteFideId "20500459"]
[BlackFideId "16400054"]
[TimeControl "5400+00"]

1. d4 {[%clk 1:29:57]} Nf6 {[%clk 1:29:44]} 2. c4 {[%clk 1:29:52]} d5 
{[%clk 1:29:05]} 3. Nc3 {[%clk 1:29:18]} e6 {[%clk 1:28:23]} 4. a3 
{[%clk 1:29:15]} dxc4 {[%clk 1:28:03]} 5. e4 {[%clk 1:28:21]} Nc6 
{[%clk 1:27:34]} 6. Nf3 {[%clk 1:27:51]} Be7 {[%clk 1:25:54]} 7. Bxc4 
{[%clk 1:27:25]} O-O {[%clk 1:25:42]} 8. O-O {[%clk 1:27:08]} b6 
{[%clk 1:25:07]} 9. d5 {[%clk 1:22:51]} Na5 {[%clk 1:20:09]} 10. Ba2 
{[%clk 1:22:37]} exd5 {[%clk 1:19:56]} 11. exd5 {[%clk 1:16:31]} Bg4 
{[%clk 1:18:03]} 12. Qd3 {[%clk 1:14:40]} Bxf3 {[%clk 1:14:56]} 13. Qxf3 
{[%clk 1:14:13]} Nb7 {[%clk 1:06:25]} 14. b4 {[%clk 1:08:14]} Nd6 
{[%clk 1:04:06]} 15. Bb2 {[%clk 1:07:41]} Nd7 {[%clk 1:02:27]} 16. Rac1 
{[%clk 1:04:19]} Bf6 {[%clk 0:58:38]} 17. Rfe1 {[%clk 1:01:30]} Ne5 
{[%clk 0:57:16]} 18. Qe2 {[%clk 0:58:11]} Re8 {[%clk 0:57:09]} 19. Qf1 
{[%clk 0:57:53]} Qd7 {[%clk 0:53:05]} 20. f3 {[%clk 0:53:26]} Qf5 
{[%clk 0:43:34]} 21. Bb1 {[%clk 0:46:16]} Qd7 {[%clk 0:43:07]} 22. Bd3 
{[%clk 0:41:10]} Nxd3 {[%clk 0:42:16]} 23. Qxd3 {[%clk 0:40:55]} Rxe1+ 
{[%clk 0:41:29]} 24. Rxe1 {[%clk 0:40:27]} Re8 {[%clk 0:41:24]} 25. Rd1 
{[%clk 0:38:23]} Qf5 {[%clk 0:40:20]} 26. Qxf5 {[%clk 0:31:37]} Nxf5 
{[%clk 0:40:18]} 27. Kf2 {[%clk 0:29:03]} a6 {[%clk 0:39:51]} 28. Na4 
{[%clk 0:27:43]} Bxb2 {[%clk 0:38:34]} 29. Nxb2 {[%clk 0:27:41]} Nd6 
{[%clk 0:38:19]} 30. Rc1 {[%clk 0:25:22]} Re7 {[%clk 0:35:33]} 31. Nc4 
{[%clk 0:24:55]} Nxc4 {[%clk 0:35:01]} 32. Rxc4 {[%clk 0:24:19]} Rd7 
{[%clk 0:34:56]} 33. Ke3 {[%clk 0:22:44]} Kf8 {[%clk 0:31:14]} 34. Kd4 
{[%clk 0:18:23]} Ke7 {[%clk 0:30:12]} 35. Rc6 {[%clk 0:17:42]} f6 
{[%clk 0:29:21]} 36. f4 {[%clk 0:16:05]} g6 {[%clk 0:28:05]} 37. g4 
{[%clk 0:14:32]} 1-0

[Event "Malawi Championship (W)"]
[Site "followchess.com"]
[Date "2022.04.16"]
[Round "3"]
[White "Kapalamula Martha"]
[Black "Namangale, Susan"]
[Result "1-0"]
[WhiteElo "1155"]
[BlackElo "1301"]
[ECO "C41"]
[WhiteFed "MAW"]
[BlackFed "MAW"]
[FCGameId "-1950626417"]
[WhiteFideId "20505116"]
[BlackFideId "20501790"]
[TimeControl "5400+00"]

1. e4 {[%clk 1:29:55]} e5 {[%clk 1:28:20]} 2. Nf3 d6 3. h3 {[%clk 1:28:45]} Nf6 
4. Nc3 Be6 5. d4 {[%clk 1:25:33]} exd4 {[%clk 1:26:50]} 6. Nxd4 {[%clk 1:25:19]} 
Bd7 {[%clk 1:26:10]} 7. Bd3 {[%clk 1:23:12]} Nc6 {[%clk 1:25:39]} 8. Be3 
{[%clk 1:17:28]} g5 {[%clk 1:24:14]} 9. Nxc6 Bxc6 {[%clk 1:23:35]} 10. Bxg5 
{[%clk 1:12:41]} Rg8 {[%clk 1:23:01]} 11. Qd2 {[%clk 1:07:58]} Bg7 
{[%clk 1:22:07]} 12. Qf4 {[%clk 1:03:08]} Qe7 {[%clk 1:19:14]} 13. O-O-O O-O-O 
14. Qf5+ Bd7 {[%clk 1:18:29]} 15. Qa5 {[%clk 0:59:21]} Kb8 {[%clk 1:17:40]} 16. 
Nd5 {[%clk 0:58:53]} Qe5 {[%clk 1:14:20]} 17. f4 {[%clk 0:56:50]} b6 
{[%clk 1:06:42]} 18. Qa6 {[%clk 0:54:57]} Bc8 {[%clk 1:00:46]} 19. Qa3 
{[%clk 0:53:41]} Qe6 {[%clk 0:59:22]} 20. Rhe1 {[%clk 0:51:33]} h6 
{[%clk 0:58:35]} 21. f5 {[%clk 0:50:31]} Qe5 {[%clk 0:57:58]} 22. Bf4 
{[%clk 0:49:59]} Qe8 {[%clk 0:56:10]} 23. g4 {[%clk 0:46:27]} Qc6 
{[%clk 0:55:25]} 24. Qb3 {[%clk 0:44:41]} Rde8 {[%clk 0:54:03]} 25. Bb5 
{[%clk 0:44:13]} Qb7 {[%clk 0:51:54]} 26. Bxe8 Rxe8 27. Rd4 {[%clk 0:40:41]} 
Nxg4 {[%clk 0:47:22]} 28. Rc4 {[%clk 0:39:52]} c6 {[%clk 0:45:53]} 29. Bxd6+ 
{[%clk 0:39:37]} Ka8 {[%clk 0:45:19]} 30. Nc7+ {[%clk 0:38:32]} Kb8 
{[%clk 0:45:01]} 31. Nxe8+ {[%clk 0:38:18]} Ka8 {[%clk 0:44:54]} 32. hxg4 
{[%clk 0:37:46]} Bxb2+ {[%clk 0:41:52]} 33. Qxb2 {[%clk 0:37:15]} Qd7 
{[%clk 0:41:41]} 34. Nc7+ {[%clk 0:36:56]} Kb7 {[%clk 0:41:00]} 35. Rd1 Qd8 36. 
Qa3 {[%clk 0:34:46]} a5 {[%clk 0:39:44]} 37. Be5 {[%clk 0:33:31]} Qg5+ 38. Kb2 
{[%clk 0:32:15]} f6 {[%clk 0:38:10]} 39. Qd6 {[%clk 0:31:06]} fxe5 
{[%clk 0:34:53]} 40. Qxc6+ Ka7 41. Qa8# {[%clk 0:28:59]} 1-0

[Event "Malawi Championship (W)"]
[Site "followchess.com"]
[Date "2022.04.16"]
[Round "3"]
[White "Kumwenda Tina"]
[Black "Tadeyo Charity"]
[Result "1/2-1/2"]
[WhiteElo "1195"]
[BlackElo "1096"]
[ECO "C41"]
[WhiteFed "MAW"]
[BlackFed "MAW"]
[FCGameId "-1349627782"]
[WhiteFideId "20502338"]
[BlackFideId "20506988"]
[TimeControl "5400+00"]

1. e4 {[%clk 1:29:46]} e5 {[%clk 1:29:28]} 2. Nf3 {[%clk 1:29:26]} d6 
{[%clk 1:29:20]} 3. h3 {[%clk 1:29:05]} c5 {[%clk 1:29:04]} 4. Nc3 
{[%clk 1:28:25]} Nf6 {[%clk 1:28:57]} 5. d3 {[%clk 1:28:06]} Nc6 
{[%clk 1:28:52]} 6. Bg5 {[%clk 1:27:44]} Be7 {[%clk 1:28:32]} 7. Be2 
{[%clk 1:24:55]} h6 {[%clk 1:28:20]} 8. Bh4 {[%clk 1:24:32]} Bd7 
{[%clk 1:27:38]} 9. O-O {[%clk 1:22:57]} O-O {[%clk 1:26:47]} 10. a3 
{[%clk 1:19:14]} Nh5 {[%clk 1:23:46]} 11. Bxe7 {[%clk 1:17:06]} Qxe7 
{[%clk 1:23:38]} 12. Nd5 {[%clk 1:16:41]} Qd8 {[%clk 1:22:58]} 13. Nxe5 
{[%clk 1:12:15]} Nxe5 {[%clk 1:21:23]} 14. Bxh5 {[%clk 1:12:02]} Qg5 
{[%clk 1:17:24]} 15. Kh2 {[%clk 1:06:11]} Ng6 {[%clk 1:15:13]} 16. Bxg6 
{[%clk 1:05:38]} fxg6 {[%clk 1:14:49]} 17. f4 {[%clk 1:02:55]} Qd8 
{[%clk 1:13:05]} 18. c3 {[%clk 1:01:07]} Rc8 {[%clk 1:11:06]} 19. Qb3 
{[%clk 1:00:46]} Kh8 {[%clk 1:06:01]} 20. Rf3 {[%clk 0:56:04]} b6 
{[%clk 1:03:56]} 21. Raf1 {[%clk 0:54:34]} Be6 {[%clk 1:01:11]} 22. Rg3 
{[%clk 0:52:28]} Bxd5 {[%clk 0:59:40]} 23. Qxd5 {[%clk 0:52:21]} Rf6 
{[%clk 0:57:22]} 24. f5 {[%clk 0:48:13]} gxf5 {[%clk 0:56:24]} 25. Rxf5 
{[%clk 0:48:01]} Rc7 {[%clk 0:54:44]} 26. Rxf6 {[%clk 0:47:16]} Qxf6 
{[%clk 0:54:14]} 27. Rf3 {[%clk 0:45:45]} Qe5+ 28. Qxe5 {[%clk 0:45:14]} dxe5 
{[%clk 0:51:56]} 29. Rf8+ Kh7 {[%clk 0:51:44]} 30. Re8 {[%clk 0:44:15]} Rd7 
{[%clk 0:51:29]} 31. Rxe5 {[%clk 0:43:43]} Rxd3 {[%clk 0:51:23]} 32. Re7 
{[%clk 0:43:35]} Re3 {[%clk 0:50:52]} 33. Kg1 {[%clk 0:42:23]} Kg6 
{[%clk 0:50:46]} 34. Kf2 {[%clk 0:42:11]} Kf6 {[%clk 0:50:32]} 35. Kxe3 
{[%clk 0:41:32]} Kxe7 36. Kf4 Ke6 {[%clk 0:50:10]} 37. e5 {[%clk 0:41:25]} b5 
{[%clk 0:49:54]} 38. g4 {[%clk 0:41:17]} g6 {[%clk 0:49:46]} 39. g5 
{[%clk 0:40:56]} h5 {[%clk 0:49:42]} 40. h4 {[%clk 0:40:53]} a6 {[%clk 0:49:34]} 
41. Ke4 {[%clk 0:40:42]} a5 {[%clk 0:49:25]} 42. Kf4 {[%clk 0:40:34]} Kd5 43. b3 
Kc6 44. Ke4 {-error} 1/2-1/2

[Event "Malawi Championship (W)"]
[Site "followchess.com"]
[Date "2022.04.15"]
[Round "2"]
[White "Namangale, Susan"]
[Black "Shriyan santosh Priyasha"]
[Result "0-1"]
[WhiteElo "1301"]
[BlackElo "1583"]
[ECO "A40"]
[WhiteFed "MAW"]
[BlackFed "MAW"]
[FCGameId "-1034273911"]
[WhiteFideId "20501790"]
[BlackFideId "20505353"]
[TimeControl "5400+00"]

1. d4 {[%clk 1:29:36]} g6 {[%clk 1:29:43]} 2. e4 {[%clk 1:29:11]} Bg7 
{[%clk 1:29:36]} 3. Be3 {[%clk 1:28:34]} d6 {[%clk 1:29:11]} 4. Bd3 
{[%clk 1:28:03]} Nf6 {[%clk 1:27:44]} 5. Nd2 {[%clk 1:27:41]} Ng4 
{[%clk 1:26:14]} 6. Qe2 {[%clk 1:26:40]} Nxe3 {[%clk 1:24:55]} 7. Qxe3 
{[%clk 1:26:30]} Nd7 {[%clk 1:24:08]} 8. Ne2 {[%clk 1:25:44]} c5 
{[%clk 1:22:42]} 9. c3 {[%clk 1:25:15]} a6 {[%clk 1:20:55]} 10. a4 
{[%clk 1:23:30]} O-O {[%clk 1:17:39]} 11. f4 {[%clk 1:21:57]} e5 
{[%clk 1:13:22]} 12. d5 {[%clk 1:20:52]} exf4 {[%clk 1:12:43]} 13. Nxf4 
{[%clk 1:19:44]} Ne5 {[%clk 1:10:12]} 14. Be2 {[%clk 1:18:26]} Qh4+ 
{[%clk 1:02:13]} 15. g3 {[%clk 1:17:29]} Qe7 {[%clk 1:00:39]} 16. c4 
{[%clk 1:15:08]} f5 {[%clk 0:58:47]} 17. O-O-O {[%clk 1:13:10]} Bd7 
{[%clk 0:55:51]} 18. b3 {[%clk 1:11:16]} b5 {[%clk 0:54:53]} 19. cxb5 
{[%clk 1:04:41]} axb5 {[%clk 0:54:07]} 20. Bxb5 {[%clk 0:59:39]} Bxb5 
{[%clk 0:52:33]} 21. axb5 {[%clk 0:58:20]} Ng4 22. Qf3 {[%clk 0:55:04]} Qf6 
{[%clk 0:45:51]} 23. Nc4 {[%clk 0:51:49]} Ra2 {[%clk 0:40:06]} 24. e5 
{[%clk 0:48:10]} Nxe5 {[%clk 0:35:51]} 25. Qc3 {[%clk 0:47:27]} Nd3+ 26. Qxd3 
{[%clk 0:44:34]} Qa1+ 27. Qb1 {[%clk 0:44:18]} Qc3+ {-error} 0-1

[Event "Malawi Championship (W)"]
[Site "followchess.com"]
[Date "2022.04.15"]
[Round "2"]
[White "Jambo, Linda"]
[Black "Tadeyo Charity"]
[Result "1-0"]
[WhiteElo "1450"]
[BlackElo "1096"]
[ECO "C41"]
[WhiteFed "MAW"]
[BlackFed "MAW"]
[FCGameId "-2146890822"]
[WhiteFideId "16400054"]
[BlackFideId "20506988"]
[TimeControl "5400+00"]

1. e4 {[%clk 1:29:55]} e5 {[%clk 1:29:38]} 2. Nf3 {[%clk 1:29:49]} d6 
{[%clk 1:29:31]} 3. h3 {[%clk 1:29:28]} Nf6 {[%clk 1:29:02]} 4. Nc3 
{[%clk 1:29:20]} c5 {[%clk 1:28:43]} 5. Bb5+ {[%clk 1:28:34]} Bd7 
{[%clk 1:28:14]} 6. d3 {[%clk 1:27:58]} h6 {[%clk 1:28:02]} 7. O-O 
{[%clk 1:27:20]} Be7 {[%clk 1:27:50]} 8. Bxd7+ {[%clk 1:26:38]} Nbxd7 
{[%clk 1:27:36]} 9. Re1 {[%clk 1:26:06]} O-O {[%clk 1:27:26]} 10. b3 
{[%clk 1:22:39]} Nb6 {[%clk 1:26:04]} 11. Bb2 {[%clk 1:22:12]} Re8 
{[%clk 1:25:35]} 12. Rb1 {[%clk 1:21:05]} Qd7 {[%clk 1:24:27]} 13. a4 a5 14. Nb5 
{[%clk 1:18:51]} Nc8 {[%clk 1:21:53]} 15. c3 {[%clk 1:17:09]} Na7 
{[%clk 1:21:17]} 16. Nxa7 {[%clk 1:16:56]} Rxa7 {[%clk 1:21:09]} 17. d4 
{[%clk 1:16:40]} exd4 {[%clk 1:18:29]} 18. cxd4 {[%clk 1:16:18]} b6 
{[%clk 1:17:49]} 19. dxc5 {[%clk 1:15:33]} dxc5 {[%clk 1:16:40]} 20. Qxd7 
{[%clk 1:14:21]} Rxd7 {[%clk 1:16:30]} 21. e5 {[%clk 1:11:39]} Nh7 
{[%clk 1:15:26]} 22. e6 {[%clk 1:10:58]} fxe6 {[%clk 1:13:50]} 23. Rxe6 
{[%clk 1:10:34]} Rd6 {[%clk 1:13:25]} 24. Rbe1 {[%clk 1:09:26]} Kf8 
{[%clk 1:10:29]} 25. Rxd6 {[%clk 1:08:55]} Bxd6 {[%clk 1:09:20]} 26. Bxg7+ 
{[%clk 1:07:26]} Kf7 {[%clk 1:07:25]} 27. Bxh6 {[%clk 1:04:05]} Rxe1+ 
{[%clk 1:05:04]} 28. Nxe1 {[%clk 1:04:01]} Ke6 {[%clk 1:04:28]} 29. Nc2 
{[%clk 1:02:13]} Nf6 {[%clk 1:04:18]} 30. Ne3 {[%clk 1:00:43]} Ne4 
{[%clk 1:03:19]} 31. Nc4 {[%clk 0:58:03]} Bc7 {[%clk 1:02:36]} 32. g4 
{[%clk 0:57:33]} Kf6 {[%clk 0:58:39]} 33. Kg2 {[%clk 0:55:56]} Kg6 
{[%clk 0:57:03]} 34. Be3 {[%clk 0:54:48]} Nf6 {[%clk 0:54:31]} 35. f4 
{[%clk 0:51:45]} Nd5 {[%clk 0:53:28]} 36. f5+ Kf6 {[%clk 0:53:08]} 37. h4 
{[%clk 0:45:48]} Nxe3+ 38. Nxe3 {[%clk 0:45:45]} Ke5 {[%clk 0:48:15]} 39. Kf3 
{[%clk 0:44:42]} Bd8 {[%clk 0:47:19]} 40. h5 {[%clk 0:44:22]} Bg5 
{[%clk 0:46:42]} 41. Nc4+ {[%clk 0:44:07]} Kd4 {[%clk 0:45:47]} 42. Nxb6 
{[%clk 0:39:44]} Kc3 {[%clk 0:44:55]} 43. Nd7 {[%clk 0:39:26]} Kxb3 
{[%clk 0:44:05]} 44. Nxc5+ {[%clk 0:39:08]} Kb4 {[%clk 0:43:35]} 45. Nb7 
{[%clk 0:38:34]} Kxa4 {[%clk 0:43:00]} 46. Ke4 {[%clk 0:38:16]} Kb5 
{[%clk 0:42:18]} 47. Nxa5 {[%clk 0:38:08]} Kxa5 {[%clk 0:41:39]} 48. Ke5 
{[%clk 0:38:00]} 1-0

[Event "Malawi Championship (W)"]
[Site "followchess.com"]
[Date "2022.04.15"]
[Round "2"]
[White "Msiska, Royce"]
[Black "Msukwa, Tupokiwe"]
[Result "1-0"]
[WhiteElo "1271"]
[BlackElo "1371"]
[ECO "B90"]
[WhiteFed "MAW"]
[BlackFed "MAW"]
[FCGameId "-435112548"]
[WhiteFideId "16400194"]
[BlackFideId "20500459"]
[TimeControl "5400+00"]

1. e4 {[%clk 1:30:00]} c5 {[%clk 1:30:00]} 2. Nf3 {[%clk 1:29:42]} d6 
{[%clk 1:29:49]} 3. d4 {[%clk 1:29:28]} cxd4 {[%clk 1:29:44]} 4. Nxd4 
{[%clk 1:28:58]} Nf6 {[%clk 1:29:12]} 5. Nc3 {[%clk 1:28:29]} a6 
{[%clk 1:28:59]} 6. Bc4 {[%clk 1:27:59]} e6 {[%clk 1:28:35]} 7. Nf3 
{[%clk 1:26:47]} Nc6 {[%clk 1:27:11]} 8. O-O {[%clk 1:26:16]} Be7 
{[%clk 1:26:58]} 9. a3 {[%clk 1:23:56]} O-O {[%clk 1:26:45]} 10. Bf4 
{[%clk 1:22:34]} Qc7 {[%clk 1:24:56]} 11. h3 {[%clk 1:20:09]} Rd8 
{[%clk 1:24:16]} 12. Re1 {[%clk 1:18:51]} b5 {[%clk 1:22:35]} 13. Ba2 
{[%clk 1:18:22]} Bb7 {[%clk 1:22:21]} 14. Qe2 {[%clk 1:14:42]} Rac8 
{[%clk 1:20:08]} 15. e5 {[%clk 1:12:23]} dxe5 {[%clk 1:19:42]} 16. Nxe5 
{[%clk 1:11:39]} Nxe5 17. Bxe5 {[%clk 1:11:28]} Qc6 {[%clk 1:16:47]} 18. f3 
{[%clk 1:08:31]} Qb6+ {[%clk 1:14:08]} 19. Kh1 {[%clk 1:07:32]} Nd7 
{[%clk 1:09:25]} 20. Bf4 {[%clk 1:05:08]} b4 {[%clk 1:00:50]} 21. Be3 
{[%clk 1:02:27]} Qc7 {[%clk 0:57:07]} 22. axb4 {[%clk 1:00:00]} Bxb4 
{[%clk 0:54:44]} 23. Bd4 {[%clk 0:57:29]} Qf4 {[%clk 0:51:05]} 24. Qe3 
{[%clk 0:53:14]} 1-0

[Event "Malawi Championship (W)"]
[Site "followchess.com"]
[Date "2022.04.15"]
[Round "2"]
[White "Mpinganjira, Ellen"]
[Black "Banda Tapiwa"]
[Result "0-1"]
[WhiteElo "1360"]
[BlackElo "1114"]
[ECO "C41"]
[WhiteFed "MAW"]
[BlackFed "MAW"]
[FCGameId "-26460781"]
[WhiteFideId "16400100"]
[BlackFideId "20505230"]
[TimeControl "5400+00"]

1. e4 {[%clk 1:30:00]} e5 {[%clk 1:30:00]} 2. Nf3 {[%clk 1:30:00]} d6 
{[%clk 1:30:00]} 3. h3 {[%clk 1:30:00]} Nf6 {[%clk 1:30:00]} 4. Nc3 
{[%clk 1:30:00]} b6 {[%clk 1:30:00]} 5. Bc4 {[%clk 1:30:00]} Ba6 
{[%clk 1:30:00]} 6. Bb3 {[%clk 1:30:00]} h6 {[%clk 1:30:00]} 7. d3 
{[%clk 1:30:00]} Bb7 {[%clk 1:30:00]} 8. O-O {[%clk 1:30:00]} Be7 
{[%clk 1:30:00]} 9. Ne2 {[%clk 1:30:00]} c6 {[%clk 1:30:00]} 10. Ng3 
{[%clk 1:30:00]} Nbd7 {[%clk 1:30:00]} 11. Nh2 {[%clk 1:30:00]} Nc5 
{[%clk 1:30:00]} 12. c3 {[%clk 1:30:00]} Nxb3 {[%clk 1:30:00]} 13. Qxb3 
{[%clk 1:30:00]} d5 {[%clk 1:30:00]} 14. Re1 {[%clk 1:28:49]} c5 
{[%clk 1:29:19]} 15. Qb5+ Qd7 {[%clk 1:29:03]} 16. Qxd7+ Nxd7 {[%clk 1:28:59]} 
17. exd5 {[%clk 1:25:46]} Bxd5 {[%clk 1:28:51]} 18. Nf5 {[%clk 1:25:02]} Bf6 
{[%clk 1:28:09]} 19. c4 {[%clk 1:24:13]} Be6 {[%clk 1:27:48]} 20. Nd6+ 
{[%clk 1:23:24]} Ke7 {[%clk 1:27:38]} 21. Ne4 {[%clk 1:22:58]} Bf5 
{[%clk 1:27:12]} 22. Rb1 {[%clk 1:21:58]} Rhd8 {[%clk 1:26:00]} 23. b3 
{[%clk 1:21:03]} Nf8 {[%clk 1:25:53]} 24. Nxf6 {[%clk 1:18:55]} Kxf6 
{[%clk 1:25:28]} 25. Bb2 {[%clk 1:17:08]} Ng6 {[%clk 1:25:04]} 26. Rbd1 
{[%clk 1:14:57]} Rxd3 {[%clk 1:24:46]} 27. Rxd3 {[%clk 1:13:38]} Bxd3 
{[%clk 1:24:43]} 28. Ng4+ {[%clk 1:13:16]} Kf5 {[%clk 1:23:22]} 29. Bxe5 
{[%clk 1:11:03]} Re8 {[%clk 1:23:14]} 30. Bc3 {[%clk 1:10:28]} Rxe1+ 
{[%clk 1:22:53]} 31. Bxe1 Bb1 32. Ne3+ {[%clk 1:08:52]} Ke6 {[%clk 1:22:35]} 33. 
a3 {[%clk 1:08:44]} Ba2 {[%clk 1:21:44]} 34. b4 {[%clk 1:08:38]} cxb4 
{[%clk 1:21:19]} 35. axb4 {[%clk 1:08:32]} Ne5 {[%clk 1:20:56]} 36. c5 
{[%clk 1:07:56]} bxc5 {[%clk 1:19:51]} 37. bxc5 {[%clk 1:05:44]} Nd3 
{[%clk 1:19:44]} 38. Bc3 {[%clk 1:04:57]} f6 {[%clk 1:19:07]} 39. Bd4 
{[%clk 1:04:33]} Nc1 {[%clk 1:18:34]} 40. c6 {[%clk 1:03:45]} a6 
{[%clk 1:18:28]} 41. Bb6 {[%clk 1:00:40]} Kd6 {[%clk 1:18:07]} 42. c7 
{[%clk 0:59:58]} Be6 {[%clk 1:18:03]} 43. Nc4+ {[%clk 0:55:40]} Kd7 
{[%clk 1:15:01]} 44. Na5 {[%clk 0:54:56]} Nb3 {[%clk 1:14:22]} 45. Nb7 
{[%clk 0:53:22]} Ke7 {[%clk 1:11:13]} 46. Nd8 {[%clk 0:51:55]} Bc8 
{[%clk 1:11:11]} 47. Nc6+ Kd7 {[%clk 1:10:48]} 48. Na7 {[%clk 0:50:26]} a5 
{[%clk 1:10:27]} 49. Nb5 {[%clk 0:43:31]} Kc6 {[%clk 1:10:15]} 50. Nd4+ Nxd4 
{[%clk 1:09:35]} 51. Bxd4 {[%clk 0:42:44]} Kxc7 {[%clk 1:07:37]} 52. Kf1 
{[%clk 0:42:34]} Kc6 {[%clk 1:07:26]} 53. Ke1 Kb5 54. Kd2 {[%clk 0:40:55]} Kc4 
{[%clk 1:07:11]} 55. Ba1 {[%clk 0:39:30]} Kb3 {[%clk 1:07:04]} 56. f4 
{[%clk 0:38:40]} a4 {[%clk 1:06:46]} 57. g4 a3 58. f5 {[%clk 0:37:16]} Ka2 
{[%clk 1:06:20]} 59. Bd4 {[%clk 0:35:55]} Kb1 {[%clk 1:06:12]} 60. h4 
{[%clk 0:34:10]} a2 {[%clk 1:06:02]} 61. g5 {[%clk 0:33:19]} hxg5 
{[%clk 1:04:36]} 62. hxg5 {[%clk 0:32:15]} fxg5 {[%clk 1:04:34]} 63. Bxg7 Bxf5 
{[%clk 1:04:29]} 64. Ke3 {[%clk 0:29:09]} a1=Q 65. Bxa1 {[%clk 0:29:04]} Kxa1 
{[%clk 1:03:59]} 66. Kf3 {[%clk 0:28:09]} Kb1 {[%clk 1:03:51]} 67. Kg3 
{[%clk 0:28:04]} Kc1 {[%clk 1:03:44]} 68. Kf3 {[%clk 0:27:45]} Kd1 
{[%clk 1:03:39]} 69. Kg3 {[%clk 0:27:38]} Ke1 {[%clk 1:03:25]} 70. Kf3 
{[%clk 0:27:18]} Kf1 {[%clk 1:03:20]} 71. Kg3 Kg1 72. Kf3 Kh2 73. Kf2 
{[%clk 0:26:14]} g4 {[%clk 1:03:13]} 74. Kf1 {[%clk 0:24:06]} g3 
{[%clk 1:03:13]} 0-1

[Event "Malawi Championship (W)"]
[Site "followchess.com"]
[Date "2022.04.15"]
[Round "1"]
[White "Shriyan santosh Priyasha"]
[Black "Kumwenda Tina"]
[Result "1-0"]
[WhiteElo "1583"]
[BlackElo "1195"]
[ECO "A20"]
[WhiteFed "MAW"]
[BlackFed "MAW"]
[FCGameId "680153905"]
[WhiteFideId "20505353"]
[BlackFideId "20502338"]
[TimeControl "5400+00"]

1. c4 {[%clk 1:29:56]} e5 {[%clk 1:28:43]} 2. g3 {[%clk 1:29:48]} Nc6 
{[%clk 1:27:49]} 3. Bg2 {[%clk 1:29:22]} Nf6 {[%clk 1:26:29]} 4. a3 Bc5 
{[%clk 1:24:57]} 5. d3 {[%clk 1:26:18]} h6 {[%clk 1:16:37]} 6. Nf3 
{[%clk 1:25:29]} d6 {[%clk 1:16:07]} 7. Nc3 {[%clk 1:24:27]} Bg4 
{[%clk 1:14:33]} 8. O-O {[%clk 1:20:37]} O-O {[%clk 1:11:56]} 9. b4 
{[%clk 1:19:13]} Bd4 {[%clk 1:06:04]} 10. Nxd4 {[%clk 1:17:55]} exd4 
{[%clk 1:04:59]} 11. Ne4 {[%clk 1:12:10]} Re8 12. Bb2 Nxe4 {[%clk 0:51:20]} 1-0